fUSD/lending_fUSD_20260407
["ID","MTS","AMOUNT","RATE_DAILY","PERIOD"]
[419985139,1775584262186,-200.0,0.00016766,2]
[419985140,1775584262197,-200.0,0.00016766,2]
[419985141,1775584262208,-200.0,0.00016766,2]
[419985142,1775584262218,-200.0,0.00016766,2]
[419985143,1775584262228,-200.0,0.00016766,2]
[419985144,1775584262239,-200.0,0.00016766,2]
[419985145,1775584262248,-200.0,0.00016766,2]
[419985146,1775584262263,-200.0,0.00016766,2]
[419985147,1775584262273,-163.0,0.00016766,2]
[419985148,1775584262283,-3561.54,0.00016766,2]
[419985149,1775584262294,-3561.54,0.00016766,2]
[419985150,1775584262304,-3881.0,0.00016769,2]
[419985151,1775584262315,-13601.6967,0.000168,2]
[419985152,1775584262326,-151.0,0.00016806,5]
[419985153,1775584262336,-1660.83,0.00016851,2]
[419985154,1775584262346,-3881.0,0.0001692,2]
[419985155,1775584262356,-519.25,0.00016931,2]
[419985156,1775584262366,-180.0,0.00016945,2]
[419985157,1775584262377,-150.0,0.00016978,120]
[419985158,1775584262388,-7130.6,0.00016986,2]
[419985159,1775584262399,-150.0,0.00016986,2]
[419985160,1775584262409,-350.0,0.00016986,2]
[419985161,1775584262420,-304.79812536,0.00016999,2]
[419985162,1775584262430,-300.0,0.00016999,2]
[419985163,1775584262441,-300.0,0.00016999,2]
[419985164,1775584262451,-300.0,0.00016999,2]
[419985165,1775584262461,-666.0,0.00016999,2]
[419985166,1775584262471,-300.0,0.00016999,2]
[419985167,1775584262482,-300.0,0.00016999,2]
[419985168,1775584262492,-300.0,0.00016999,2]
[419985169,1775584262502,-300.0,0.00016999,2]
[419985170,1775584262512,-300.0,0.00016999,2]
[419985171,1775584262523,-300.0,0.00016999,2]
[419985172,1775584262533,-300.0,0.00016999,2]
[419985173,1775584262543,-300.0,0.00016999,2]
[419985174,1775584262553,-300.0,0.00016999,2]
[419985175,1775584262563,-300.0,0.00016999,2]
[419985176,1775584262573,-300.0,0.00016999,2]
[419985177,1775584262583,-300.0,0.00016999,2]
[419985178,1775584262593,-300.0,0.00016999,2]
[419985179,1775584262602,-1171329.62683614,0.00017,2]
[419985180,1775584262613,-200.0,0.00017,3]
[419985181,1775584262623,-207370.14210905,0.00017,2]
[419985182,1775584262633,-350.0,0.00017,2]
[419985183,1775584262642,-160.0,0.00017,7]
[419985184,1775584262653,-300.0,0.00017022,2]
[419985185,1775584262663,-300.0,0.00017022,2]
[419985186,1775584262673,-1648.0,0.00017023,2]
[419985187,1775584262683,-7282.0,0.00017023,2]
[419985188,1775584262694,-4343.0,0.00017023,2]
[419985189,1775584262704,-1832.0,0.00017023,2]
[419985190,1775584262715,-1317.0,0.00017023,2]
[419985191,1775584262724,-881.0,0.00017023,2]
[419985192,1775584262734,-221.0,0.00017023,2]
[419985193,1775584262744,-1481.23780761,0.00017041,2]
[419985194,1775584262754,-3881.0,0.00017049,2]
[419985195,1775584262764,-4000.0,0.00017058,2]
[419985196,1775584262774,-1500.0,0.00017068,2]
[419985197,1775584262784,-1500.0,0.00017068,2]
[419985198,1775584262794,-314.26887436,0.00017068,2]
[419985199,1775584262804,-501.73156971,0.00017068,2]
[419985200,1775584262814,-1283.10092568,0.00017068,2]
[419985201,1775584262824,-1500.0,0.00017068,2]
[419985202,1775584262833,-506.45995198,0.00017068,2]
[419985203,1775584262843,-569.14564558,0.00017068,2]
[419985204,1775584262853,-430.82314799,0.00017068,2]
[419985205,1775584262863,-1500.0,0.00017068,2]
[419985206,1775584262873,-1106.23788973,0.00017068,2]
[419985207,1775584262883,-207.81407529,0.00017151,2]
[419985208,1775584262893,-7130.6,0.0001726,2]
[419985209,1775584262903,-450.0,0.0001726,2]
[419985210,1775584262913,-155.26329613,0.00017298,2]
[419985211,1775584262923,-503.18,0.00017424,2]
[419985212,1775584262933,-200.0,0.000175,3]
[419985213,1775584262943,-7130.6,0.00017534,2]
[419985214,1775584262953,-150.0,0.00017534,2]
[419985215,1775584262962,-550.0,0.00017534,2]
[419985216,1775584262972,-234.5338,0.000176,2]
[419985217,1775584262982,-252.56789885,0.00017616,2]
[419985218,1775584262992,-2000.0,0.00017616,2]
[419985219,1775584263002,-2000.0,0.00017616,2]
[419985220,1775584263014,-447.22262728,0.00017648,2]
[419985221,1775584263024,-152.0,0.00017673,2]
[419985222,1775584263033,-300.0,0.00017699,2]
[419985223,1775584263043,-300.0,0.00017699,2]
[419985224,1775584263053,-300.0,0.00017699,2]
[419985225,1775584263062,-666.0,0.00017699,2]
[419985226,1775584263072,-300.0,0.00017699,2]
[419985227,1775584263082,-300.0,0.00017699,2]
[419985228,1775584263092,-300.0,0.00017699,2]
[419985229,1775584263102,-300.0,0.00017699,2]
[419985230,1775584263111,-300.0,0.00017699,2]
[419985231,1775584263121,-300.0,0.00017699,2]
[419985232,1775584263131,-300.0,0.00017699,2]
[419985233,1775584263141,-300.0,0.00017699,2]
[419985234,1775584263150,-300.0,0.00017699,2]
[419985235,1775584263160,-300.0,0.00017699,2]
[419985236,1775584263171,-300.0,0.00017699,2]
[419985237,1775584263181,-788.8207043,0.000177,2]
[419985238,1775584263192,-403.0,0.000177,5]
[419985239,1775584263202,-342956.12,0.000177,2]
[419985240,1775584263212,-652.41,0.00017728,2]
[419985241,1775584263222,-5945.48,0.00017728,2]
[419985242,1775584263232,-150.0,0.00017737,120]
[419985243,1775584263242,-298.04,0.000178,2]
[419985244,1775584263252,-763.49,0.000178,2]
[419985245,1775584263262,-1195.97,0.000178,2]
[419985246,1775584263271,-151.0,0.00017806,5]
[419985247,1775584263282,-7130.6,0.00017808,2]
[419985248,1775584263292,-526.0,0.00017808,10]
[419985249,1775584263303,-650.0,0.00017808,2]
[419985250,1775584263314,-1010.07365691,0.0001786,2]
[419985251,1775584263326,-1232.42529034,0.0001789,2]
[419985252,1775584263338,-1079.94388733,0.0001789,2]
[419985253,1775584263349,-1600.0,0.00017913,2]
[419985254,1775584263360,-456.610861,0.00017947,7]
[419985255,1775584263371,-174.842085,0.00017981,7]
[419985256,1775584263381,-300.0,0.00017989,2]
[419985257,1775584263391,-300.0,0.00017989,2]
[419985258,1775584263403,-300.0,0.00017989,2]
[419985259,1775584263413,-20000.0,0.0001799,2]
[419985260,1775584263424,-300.0,0.00017999,2]
[419985261,1775584263434,-300.0,0.00017999,2]
[419985262,1775584263444,-300.0,0.00017999,2]
[419985263,1775584263454,-300.0,0.00017999,2]
[419985264,1775584263463,-300.0,0.00017999,2]
[419985265,1775584263472,-300.0,0.00017999,2]
[419985266,1775584263482,-300.0,0.00017999,2]
[419985267,1775584263491,-300.0,0.00017999,2]
[419985268,1775584263502,-300.0,0.00017999,2]
[419985269,1775584263511,-300.0,0.00017999,2]
[419985270,1775584263522,-300.0,0.00017999,2]
[419985271,1775584263531,-1001.66567261,0.00018,2]
[419985272,1775584263541,-110304.11920261,0.00018,2]
[419985273,1775584263551,-1201.13504882,0.00018,2]
[419985274,1775584263571,-200.0,0.00018,2]
[419985275,1775584263583,-7969.7679626,0.00018019,2]
[419985276,1775584263594,-300.0,0.00018022,2]
[419985277,1775584263604,-300.0,0.00018022,2]
[419985278,1775584263615,-1648.0,0.00018023,2]
[419985279,1775584263625,-7282.0,0.00018023,2]
[419985280,1775584263635,-4343.0,0.00018023,2]
[419985281,1775584263644,-1832.0,0.00018023,2]
[419985282,1775584263655,-1317.0,0.00018023,2]
[419985283,1775584263665,-881.0,0.00018023,2]
[419985284,1775584263676,-221.0,0.00018023,2]
[419985285,1775584263685,-7130.6,0.00018082,2]
[419985286,1775584263697,-150.0,0.00018082,2]
[419985287,1775584263707,-750.0,0.00018082,2]
[419985288,1775584263717,-1792.73232799,0.000181,2]
[419985289,1775584263728,-2500.0,0.00018164,2]
[419985290,1775584263738,-1503.40852733,0.00018164,2]
[419985291,1775584263748,-261.242571,0.00018165,7]
[419985292,1775584263758,-411.560869,0.00018165,2]
[419985293,1775584263768,-207.81407529,0.00018201,7]
[419985294,1775584263778,-267.980987,0.00018203,7]
[419985295,1775584263788,-242.422615,0.0001822,2]
[419985296,1775584263798,-271.072129,0.0001822,7]
[419985297,1775584263808,-263.236531,0.0001822,7]
[419985298,1775584263819,-150.0,0.00018316,2]
[419985299,1775584263829,-150.0,0.00018316,2]
[419985300,1775584263839,-150.0,0.00018316,2]
[419985301,1775584263848,-300.0,0.00018355,2]
[419985302,1775584263859,-300.0,0.00018355,2]
[419985303,1775584263868,-300.0,0.00018355,2]
[419985304,1775584263879,-300.0,0.00018355,2]
[419985305,1775584263889,-300.0,0.00018355,2]
[419985306,1775584263899,-300.0,0.00018355,2]
[419985307,1775584263909,-300.0,0.00018355,2]
[419985308,1775584263919,-300.0,0.00018355,2]
[419985309,1775584263929,-285.40326713,0.00018355,2]
[419985310,1775584263939,-300.0,0.00018355,2]
[419985311,1775584263949,-300.0,0.00018355,2]
[419985312,1775584263959,-7130.6,0.00018356,2]
[419985313,1775584263970,-89197.3,0.00018356,2]
[419985314,1775584263980,-850.0,0.00018356,2]
[419985315,1775584263990,-1778.2956018,0.00018472,2]
[419985316,1775584264000,-151.01957962,0.000185,2]
[419985317,1775584264011,-164.73774504,0.00018509,7]
[419985318,1775584264021,-300.0,0.0001851,2]
[419985319,1775584264032,-622.0,0.00018511,2]
[419985320,1775584264041,-1046.0,0.00018511,2]
[419985321,1775584264051,-3524.0,0.00018511,2]
[419985322,1775584264061,-1264.0,0.00018511,2]
[419985323,1775584264071,-415.0,0.00018511,2]
[419985324,1775584264080,-2471.0,0.00018511,2]
[419985325,1775584264090,-3772.0,0.00018511,2]
[419985326,1775584264100,-152.0,0.00018608,2]
[419985327,1775584264110,-7130.6,0.0001863,2]
[419985328,1775584264119,-150.0,0.0001863,2]
[419985329,1775584264129,-950.0,0.0001863,2]
[419985330,1775584264139,-263.0,0.00018639,7]
[419985331,1775584264149,-263.0,0.00018639,7]
[419985332,1775584264159,-3000.0,0.00018712,2]
[419985333,1775584264169,-263.0,0.00018728,7]
[419985334,1775584264179,-151.0,0.00018806,5]
[419985335,1775584264189,-150.0,0.00018864,120]
[419985336,1775584264199,-262.2611,0.000189,2]
[419985337,1775584264208,-7130.6,0.00018904,2]
[419985338,1775584264218,-1062.70434469,0.00018904,2]
[419985339,1775584264227,-300.0,0.00018999,2]
[419985340,1775584264237,-300.0,0.00018999,2]
[419985341,1775584264247,-300.0,0.00018999,2]
[419985342,1775584264256,-300.0,0.00018999,2]
[419985343,1775584264265,-300.0,0.00018999,2]
[419985344,1775584264275,-300.0,0.00018999,2]
[419985345,1775584264285,-300.0,0.00018999,2]
[419985346,1775584264295,-300.0,0.00018999,2]
[419985347,1775584264305,-200.0,0.00019,3]
[419985348,1775584264314,-5209.15208035,0.00019,2]
[419985349,1775584264324,-4190.0,0.00019,2]
[419985350,1775584264334,-99997.91526307,0.00019,2]
[419985351,1775584264344,-99997.91526307,0.00019,2]
[419985352,1775584264354,-3109.74158134,0.00019,2]
[419985353,1775584264364,-400.0,0.00019,2]
[419985354,1775584264373,-1790.92398723,0.00019,2]
[419985355,1775584264383,-342956.12,0.00019,2]
[419985356,1775584264393,-361.93829528,0.0001901,7]
[419985357,1775584264402,-1648.0,0.00019023,2]
[419985358,1775584264411,-7282.0,0.00019023,2]
[419985359,1775584264421,-4343.0,0.00019023,2]
[419985360,1775584264430,-1832.0,0.00019023,2]
[419985361,1775584264440,-1317.0,0.00019023,2]
[419985362,1775584264450,-881.0,0.00019023,2]
[419985363,1775584264460,-221.0,0.00019023,2]
[419985364,1775584264470,-155.26329613,0.00019028,2]
[419985365,1775584264479,-150.0,0.00019048,120]
[419985366,1775584264489,-263.0,0.00019117,7]
[419985367,1775584264498,-300.0,0.00019177,2]
[419985368,1775584264507,-300.0,0.00019177,2]
[419985369,1775584264517,-300.0,0.00019177,2]
[419985370,1775584264526,-300.0,0.00019177,2]
[419985371,1775584264536,-300.0,0.00019177,2]
[419985372,1775584264546,-300.0,0.00019177,2]
[419985373,1775584264559,-300.0,0.00019177,2]
[419985374,1775584264568,-300.0,0.00019177,2]
[419985375,1775584264578,-7130.6,0.00019178,2]
[419985376,1775584264588,-3000.0,0.00019178,2]
[419985377,1775584264597,-3000.0,0.00019178,7]
[419985378,1775584264607,-1000.0,0.00019178,12]
[419985379,1775584264616,-150.0,0.00019178,2]
[419985380,1775584264626,-150.0,0.00019178,2]
[419985381,1775584264636,-150.0,0.00019178,2]
[419985382,1775584264645,-174.01681306,0.00019178,2]
[419985383,1775584264655,-20316.79,0.00019178,2]
[419985384,1775584264665,-151.0,0.00019178,2]
[419985385,1775584264674,-151.0,0.00019178,2]
[419985386,1775584264684,-151.0,0.00019178,2]
[419985387,1775584264694,-151.0,0.00019178,2]
[419985388,1775584264704,-151.0,0.00019178,2]
[419985389,1775584264714,-151.0,0.00019178,2]
[419985390,1775584264724,-151.0,0.00019178,2]
[419985391,1775584264736,-238.058874,0.00019178,2]
[419985392,1775584264746,-238.058874,0.00019178,2]
[419985393,1775584264755,-238.058874,0.00019178,2]
[419985394,1775584264766,-238.058874,0.00019178,2]
[419985395,1775584264776,-9444.997576,0.00019178,2]
[419985396,1775584264787,-9444.997576,0.00019178,2]
[419985397,1775584264797,-9444.997576,0.00019178,2]
[419985398,1775584264807,-9444.997576,0.00019178,2]
[419985399,1775584264817,-560.96283,0.00019178,2]
[419985400,1775584264827,-560.96283,0.00019178,2]
[419985401,1775584264836,-560.96283,0.00019178,2]
[419985402,1775584264846,-560.96283,0.00019178,2]
[419985403,1775584264856,-173.42231467,0.00019178,2]
[419985404,1775584264865,-150.0,0.00019178,2]
[419985405,1775584264875,-150.0,0.00019178,2]
[419985406,1775584264885,-9194.19580935,0.00019198,2]
[419985407,1775584264895,-150.22829359,0.000192,2]
[419985408,1775584264905,-207.81407529,0.00019252,7]
[419985409,1775584264915,-3500.0,0.0001926,2]
[419985410,1775584264924,-163.9737851,0.00019312,2]
[419985411,1775584264934,-150.0,0.00019341,120]
[419985412,1775584264943,-7130.6,0.00019452,2]
[419985413,1775584264953,-186.07,0.00019452,14]
[419985414,1775584264962,-186.07,0.00019452,14]
[419985415,1775584264971,-186.06,0.00019452,14]
[419985416,1775584264981,-3360.0,0.00019463,7]
[419985417,1775584264990,-220.0,0.00019542,2]
[419985418,1775584265000,-150.0,0.00019641,120]
[419985419,1775584265009,-169.84409238,0.0001965,2]
[419985420,1775584265018,-233.97,0.00019658,2]
[419985421,1775584265027,-250.0,0.00019726,2]
[419985422,1775584265036,-250.0,0.00019726,2]
[419985423,1775584265046,-151.0,0.00019806,5]
[419985424,1775584265056,-338.87713456,0.00019808,2]
[419985425,1775584265065,-2000.0,0.00019848,3]
[419985426,1775584265075,-300.0,0.00019899,2]
[419985427,1775584265084,-300.0,0.00019899,2]
[419985428,1775584265093,-300.0,0.00019899,2]
[419985429,1775584265103,-300.0,0.00019899,2]
[419985430,1775584265113,-300.0,0.00019899,2]
[419985431,1775584265123,-300.0,0.00019899,2]
[419985432,1775584265133,-300.0,0.00019899,2]
[419985433,1775584265143,-300.0,0.00019899,2]
[419985434,1775584265153,-4968.18445726,0.000199,3]
[419985435,1775584265162,-70257.82608557,0.000199,2]
[419985436,1775584265172,-300.0,0.00019949,2]
[419985437,1775584265181,-300.0,0.00019949,2]
[419985438,1775584265191,-300.0,0.00019949,2]
[419985439,1775584265200,-300.0,0.00019949,2]
[419985440,1775584265210,-300.0,0.00019949,2]
[419985441,1775584265219,-300.0,0.00019949,2]
[419985442,1775584265230,-300.0,0.00019949,2]
[419985443,1775584265240,-300.0,0.00019949,2]
[419985444,1775584265250,-367651.50051249,0.0001995,15]
[419985445,1775584265260,-120249.33087468,0.0001998,2]
[419985446,1775584265270,-151.0,0.00019997,2]
[419985447,1775584265281,-365.53226171,0.0002,120]
[419985448,1775584265291,-233.48885417,0.0002,30]
[419985449,1775584265301,-1481.4753353,0.0002,5]
[419985450,1775584265312,-809.81901584,0.0002,20]
[419985451,1775584265322,-26647.72204221,0.0002,2]
[419985452,1775584265333,-1921.35304123,0.0002,120]
[419985453,1775584265344,-1850.0,0.0002,60]
[419985454,1775584265353,-854.75350841,0.0002,2]
[419985455,1775584265364,-250.0,0.0002,2]
[419985456,1775584265374,-151.0,0.0002,2]
[419985457,1775584265383,-2000.0,0.0002,120]
[419985458,1775584265393,-1006.24,0.0002,3]
[419985459,1775584265403,-200.0,0.0002,3]
[419985460,1775584265413,-1000000.0,0.0002,2]
[419985461,1775584265424,-517.0,0.0002,5]
[419985462,1775584265433,-1053.11594453,0.0002,2]
[419985463,1775584265444,-2885.88822985,0.0002,2]
[419985464,1775584265454,-13025.67832718,0.0002,2]
[419985465,1775584265464,-152.0,0.0002,2]
[419985466,1775584265475,-7045.77680743,0.0002,2]
[419985467,1775584265485,-1545.29299983,0.0002,2]
[419985468,1775584265494,-25795.70326668,0.0002,2]
[419985469,1775584265505,-3950.0,0.0002,2]
[419985470,1775584265515,-1304.570338,0.0002,2]
[419985471,1775584265705,-200.0,0.0002,2]
[419985472,1775584265729,-133111.30817323,0.0002,2]
[419985473,1775584265739,-2161.0,0.0002,2]
[419985474,1775584265750,-181.9549737,0.0002,3]
[419985475,1775584265761,-1666.97,0.0002,30]
[419985476,1775584265771,-1046.0,0.0002,2]
[419985477,1775584265781,-359.51,0.0002,7]
[419985478,1775584265791,-3500.9,0.0002,5]
[419985479,1775584265801,-2968.6785941,0.0002,7]
[419985480,1775584265812,-534.65790232,0.0002,7]
[419985481,1775584265822,-5244.72711982,0.0002,2]
[419985482,1775584265835,-186.07,0.0002,14]
[419985483,1775584265846,-186.07,0.0002,14]
[419985484,1775584265856,-186.06,0.0002,14]
[419985485,1775584265867,-2000.0,0.0002,2]
[419985486,1775584265877,-151.0,0.0002,2]
[419985487,1775584265887,-151.0,0.0002,2]
[419985488,1775584265897,-151.0,0.0002,2]
[419985489,1775584265908,-151.0,0.0002,2]
[419985490,1775584265918,-151.0,0.0002,2]
[419985491,1775584265927,-151.0,0.0002,2]
[419985492,1775584265937,-151.0,0.0002,2]
[419985493,1775584265947,-151.0,0.0002,2]
[419985494,1775584265957,-151.0,0.0002,2]
[419985495,1775584265967,-151.0,0.0002,2]
[419985496,1775584265977,-151.0,0.0002,2]
[419985497,1775584265987,-151.0,0.0002,2]
[419985498,1775584265997,-151.0,0.0002,2]
[419985499,1775584266007,-151.0,0.0002,2]
[419985500,1775584266019,-151.0,0.0002,2]
[419985501,1775584266030,-151.0,0.0002,2]
[419985502,1775584266040,-151.0,0.0002,2]
[419985503,1775584266050,-151.0,0.0002,2]
[419985504,1775584266061,-151.0,0.0002,2]
[419985505,1775584266070,-151.0,0.0002,2]
[419985506,1775584266080,-151.0,0.0002,2]
[419985507,1775584266090,-151.0,0.0002,2]
[419985508,1775584266100,-151.0,0.0002,2]
[419985509,1775584266111,-151.0,0.0002,2]
[419985510,1775584266121,-151.0,0.0002,2]
[419985511,1775584266132,-151.0,0.0002,2]
[419985512,1775584266142,-151.0,0.0002,2]
[419985513,1775584266153,-151.0,0.0002,2]
[419985514,1775584266163,-379.129771,0.0002,2]
[419985515,1775584266174,-151.0,0.0002,2]
[419985516,1775584266184,-151.0,0.0002,2]
[419985517,1775584266194,-379.129771,0.0002,2]
[419985518,1775584266204,-379.129771,0.0002,2]
[419985519,1775584266214,-196.046925,0.0002,2]
[419985520,1775584266224,-379.129771,0.0002,2]
[419985521,1775584266235,-196.046925,0.0002,2]
[419985522,1775584266244,-390.856479,0.0002,2]
[419985523,1775584266253,-151.0,0.0002,2]
[419985524,1775584266265,-151.0,0.0002,2]
[419985525,1775584266275,-196.046925,0.0002,2]
[419985526,1775584266285,-390.856479,0.0002,2]
[419985527,1775584266295,-196.046925,0.0002,2]
[419985528,1775584266305,-390.856479,0.0002,2]
[419985529,1775584266315,-390.856479,0.0002,2]
[419985530,1775584266326,-151.0,0.0002,2]
[419985531,1775584266337,-157.618458,0.0002,2]
[419985532,1775584266347,-151.0,0.0002,2]
[419985533,1775584266357,-157.618458,0.0002,2]
[419985534,1775584266367,-151.0,0.0002,2]
[419985535,1775584266378,-151.0,0.0002,2]
[419985536,1775584266387,-157.618458,0.0002,2]
[419985537,1775584266398,-299.995898,0.0002,2]
[419985538,1775584266408,-157.618458,0.0002,2]
[419985539,1775584266419,-220.829534,0.0002,2]
[419985540,1775584266429,-220.829534,0.0002,2]
[419985541,1775584266439,-220.829534,0.0002,2]
[419985542,1775584266449,-220.829534,0.0002,2]
[419985543,1775584266460,-151.0,0.0002,2]
[419985544,1775584266470,-151.0,0.0002,2]
[419985545,1775584266481,-151.0,0.0002,2]
[419985546,1775584266492,-151.0,0.0002,2]
[419985547,1775584266503,-151.0,0.0002,2]
[419985548,1775584266513,-151.0,0.0002,2]
[419985549,1775584266523,-151.0,0.0002,2]
[419985550,1775584266534,-151.0,0.0002,2]
[419985551,1775584266544,-151.0,0.0002,2]
[419985552,1775584266555,-151.0,0.0002,2]
[419985553,1775584266564,-151.0,0.0002,2]
[419985554,1775584266575,-151.0,0.0002,2]
[419985555,1775584266586,-151.0,0.0002,2]
[419985556,1775584266596,-151.0,0.0002,2]
[419985557,1775584266606,-151.0,0.0002,2]
[419985558,1775584266617,-151.0,0.0002,2]
[419985559,1775584266627,-151.0,0.0002,2]
[419985560,1775584266637,-151.0,0.0002,2]
[419985561,1775584266647,-150.0,0.0002,2]
[419985562,1775584266658,-299.62530582,0.0002,2]
[419985563,1775584266669,-151.0,0.0002,2]
[419985564,1775584266680,-151.0,0.0002,2]
[419985565,1775584266690,-151.0,0.0002,2]
[419985566,1775584266701,-151.0,0.0002,2]
[419985567,1775584266711,-212.301812,0.0002,2]
[419985568,1775584266720,-151.0,0.0002,2]
[419985569,1775584266730,-151.0,0.0002,2]
[419985570,1775584266740,-151.0,0.0002,2]
[419985571,1775584266750,-151.0,0.0002,2]
[419985572,1775584266760,-151.0,0.0002,2]
[419985573,1775584266771,-151.0,0.0002,2]
[419985574,1775584266781,-151.0,0.0002,2]
[419985575,1775584266791,-151.0,0.0002,2]
[419985576,1775584266802,-151.0,0.0002,2]
[419985577,1775584266812,-151.0,0.0002,2]
[419985578,1775584266822,-151.0,0.0002,2]
[419985579,1775584266832,-151.0,0.0002,2]
[419985580,1775584266841,-151.0,0.0002,2]
[419985581,1775584266851,-151.0,0.0002,2]
[419985582,1775584266860,-151.0,0.0002,2]
[419985583,1775584266870,-151.0,0.0002,2]
[419985584,1775584266880,-295.044252,0.0002,2]
[419985585,1775584266890,-151.0,0.0002,2]
[419985586,1775584266901,-151.0,0.0002,2]
[419985587,1775584266911,-399.955189,0.0002,2]
[419985588,1775584266922,-151.0,0.0002,2]
[419985589,1775584266933,-399.955189,0.0002,2]
[419985590,1775584266943,-151.0,0.0002,2]
[419985591,1775584266953,-399.955189,0.0002,2]
[419985592,1775584266965,-151.0,0.0002,2]
[419985593,1775584266974,-399.955189,0.0002,2]
[419985594,1775584266984,-361.389933,0.0002,2]
[419985595,1775584266994,-151.0,0.0002,2]
[419985596,1775584267005,-361.389933,0.0002,2]
[419985597,1775584267015,-151.0,0.0002,2]
[419985598,1775584267026,-196.442134,0.0002,2]
[419985599,1775584267036,-161.643915,0.0002,2]
[419985600,1775584267046,-361.389933,0.0002,2]
[419985601,1775584267057,-151.0,0.0002,2]
[419985602,1775584267068,-151.0,0.0002,2]
[419985603,1775584267077,-310.762173,0.0002,2]
[419985604,1775584267087,-196.442134,0.0002,2]
[419985605,1775584267097,-161.643915,0.0002,2]
[419985606,1775584267107,-361.389933,0.0002,2]
[419985607,1775584267117,-237.471499,0.0002,2]
[419985608,1775584267127,-151.0,0.0002,2]
[419985609,1775584267136,-196.442134,0.0002,2]
[419985610,1775584267146,-310.762173,0.0002,2]
[419985611,1775584267156,-161.643915,0.0002,2]
[419985612,1775584267167,-196.442134,0.0002,2]
[419985613,1775584267178,-161.643915,0.0002,2]
[419985614,1775584267188,-310.762173,0.0002,2]
[419985615,1775584267198,-151.0,0.0002,2]
[419985616,1775584267208,-151.0,0.0002,2]
[419985617,1775584267218,-310.762173,0.0002,2]
[419985618,1775584267229,-893.154203,0.0002,2]
[419985619,1775584267239,-575.477206,0.0002,2]
[419985620,1775584267249,-893.154203,0.0002,2]
[419985621,1775584267259,-575.477206,0.0002,2]
[419985622,1775584267269,-893.154203,0.0002,2]
[419985623,1775584267279,-151.0,0.0002,2]
[419985624,1775584267290,-575.477206,0.0002,2]
[419985625,1775584267300,-893.154203,0.0002,2]
[419985626,1775584267310,-151.0,0.0002,2]
[419985627,1775584267320,-575.477206,0.0002,2]
[419985628,1775584267331,-151.0,0.0002,2]
[419985629,1775584267342,-691.338834,0.0002,2]
[419985630,1775584267352,-691.338834,0.0002,2]
[419985631,1775584267361,-151.0,0.0002,2]
[419985632,1775584267372,-691.338834,0.0002,2]
[419985633,1775584267382,-151.0,0.0002,2]
[419985634,1775584267392,-691.338834,0.0002,2]
[419985635,1775584267403,-151.0,0.0002,2]
[419985636,1775584267413,-151.0,0.0002,2]
[419985637,1775584267424,-151.0,0.0002,2]
[419985638,1775584267435,-151.0,0.0002,2]